Workbook

Sheet Hull-White
A1: Hull-White Tree | D1: Key: | F1: Time | G1: 0 | I1: =G1+deltat -> 1 | K1: =I1+deltat -> 2 | M1: =K1+deltat -> 3 | O1: 4 | Q1: 5 | S1: 6 | U1: 7 | W1: 8 | Y1: 9 | AA1: 10
A2: sigma | B2: 0.01 | E2: Derivative Price | F2: Zero Rates | I2: 0.04 | K2: 0.05 | M2: 0.06 | O2: 0.06
A3: a | B3: 0 | E3: State Price | F3: ZCB Price | G3: =EXP(-G$2*G$1) -> 1 | I3: =EXP(-I$2*I$1) -> 0.9607894392 | K3: =EXP(-K$2*K$1) -> 0.904837418 | M3: =EXP(-M$2*M$1) -> 0.8352702114 | O3: =EXP(-O$2*O$1) -> 0.7866278611
A4: deltat | B4: 1 | E4: Short Rate | F4: Calculated Price | I4: =G48*EXP(-G49*deltat)+G43*EXP(-G44*deltat)+G38*EXP(-G39*deltat)+G33*EXP(-G34*deltat)+G28*EXP(-G29*deltat)+G23*EXP(-G24*deltat)+G18*EXP(-G19*deltat) -> 0.9607894392 | K4: =I48*EXP(-I49*deltat)+I43*EXP(-I44*deltat)+I38*EXP(-I39*deltat)+I33*EXP(-I34*deltat)+I28*EXP(-I29*deltat)+I23*EXP(-I24*deltat)+I18*EXP(-I19*deltat) -> 0.904837418 | M4: =K48*EXP(-K49*deltat)+K43*EXP(-K44*deltat)+K38*EXP(-K39*deltat)+K33*EXP(-K34*deltat)+K28*EXP(-K29*deltat)+K23*EXP(-K24*deltat)+K18*EXP(-K19*deltat) -> 0.8352702114 | O4: =M48*EXP(-M49*deltat)+M43*EXP(-M44*deltat)+M38*EXP(-M39*deltat)+M33*EXP(-M34*deltat)+M28*EXP(-M29*deltat)+M23*EXP(-M24*deltat)+M18*EXP(-M19*deltat) -> 0.7866278693
A5: deltaR | B5: =sigma*SQRT(3*deltat) -> 0.01732050808 | F5: Pricing Error | I5: =I4-I3 -> 0 | K5: =K4-K3 -> 0 | M5: =M4-M3 -> -5.1034732e-12 | O5: =O4-O3 -> 8.281391906e-09
A6: jmax | B6: =IF(a=0,1000,0.184/(a*deltat)) -> 1000 | E6: Transition | F6: new alpha | G6: =G7+I5 -> 0.04 | I6: =I7+K5 -> 0.06005 | K6: =K7+M5 -> 0.0802 | M6: =M7+O5 -> 0.06044999772
A7: jmin | B7: =-jmax -> -1000 | E7: Probabilities ¯ | F7: alpha | G7: =G6 -> 0.04 | I7: =I6 -> 0.06005 | K7: =K6 -> 0.0802 | M7: =M6 -> 0.06044999772
A16: Derivative payoff Formula: | B16: MAX(bondprice-93,0) | E16: =IF(D18<=jmin,1/6+(1/2)*(a^2*D18^2*deltat^2+a*D18*deltat),0) -> 0 | M16: =SUBSTITUTE(SUBSTITUTE(formula,"periodrate",ADDRESS(ROW()+3,COLUMN())),"bondprice",ADDRESS(ROW()+3,COLUMN()-1)) -> MAX($L$19-93,0)
A17: Use shortrate and/or bondprice as variables | E17: =IF(D18<=jmin,-1/3-a^2*D18^2*deltat^2-2*a*D18*deltat,IF(D18<jmax,1/6+(1/2)*(a^2*D18^2*deltat^2-a*D18*deltat),0)) -> 0.1666666667 | M17: =IF(M$1>derivativematurity,0,IF(M$1=derivativematurity,M20,MAX((O7*$E16+O12*$E17+O17*$E18+O22*$E19+O27*$E20)*EXP(-M19*deltat),IF(AmerEur="American",M20,-1E+307)))) -> 0
A18: Examples: MAX(bondprice-99,0) or 10000*MAX(.05-shortrate,0) | D18: =D23+1 -> 3 | E18: =IF(D18<=jmin,7/6+(1/2)*(a^2*D18^2*deltat^2+3*a*D18*deltat),IF(D18<jmax,2/3-a^2*D18^2*deltat^2,7/6+(1/2)*(a^2*D18^2*deltat^2-3*a*D18*deltat))) -> 0.6666666667 | M18: =$E26*EXP(-K29*deltat)*K28+$E22*EXP(-K24*deltat)*K23+$E18*EXP(-K19*deltat)*K18+$E14*EXP(-K14*deltat)*K13+$E10*EXP(-K9*deltat)*K8 -> 0.003670270434
A19: American/European | B19: European | E19: =IF(D18<=jmin,0,IF(D18<jmax,1/6+(1/2)*(a^2*D18^2*deltat^2+a*D18*deltat),-1/3-a^2*D18^2*deltat^2+2*a*D18*deltat)) -> 0.1666666667 | L19: =BondFaceValue*(EXP(-BondMaturity*OFFSET(M$2,0,2*(BondMaturity-M$1)/deltat))/M$3)*EXP(-(sigma^2)*IF(a=0,BondMaturity-M$1,(1-EXP(-a*(BondMaturity-M$1)))/a)^2*IF(a=0,M$1/2,(1-EXP(-2*a*M$1))/(4*a))-IF(a=0,BondMaturity-M$1,(1-EXP(-a*(BondMaturity-M$1)))/a)*((M19*deltat+LN(O$3/M$3))/(IF(a=0,deltat,(1-EXP(-a*deltat))/a))-sigma^2*IF(a=0,M$1*deltat/2,(1-EXP(-2*a*M$1))*((1-EXP(-a*deltat))/a)/(4*a)))) -> 100 | M19: =$D18*deltaR+M$7 -> 0.1124115219
A20: Derivative Maturity | B20: 2 | E20: =IF(D18<jmax,0,1/6+(1/2)*(a^2*D18^2*deltat^2-a*D18*deltat)) -> 0 | M20: =payoff -> 7
A21: Zero Coupon Bond Maturity | B21: 3 | E21: =IF(D23<=jmin,1/6+(1/2)*(a^2*D23^2*deltat^2+a*D23*deltat),0) -> 0 | K21: =SUBSTITUTE(SUBSTITUTE(formula,"periodrate",ADDRESS(ROW()+3,COLUMN())),"bondprice",ADDRESS(ROW()+3,COLUMN()-1)) -> MAX($J$24-93,0) | M21: =SUBSTITUTE(SUBSTITUTE(formula,"periodrate",ADDRESS(ROW()+3,COLUMN())),"bondprice",ADDRESS(ROW()+3,COLUMN()-1)) -> MAX($L$24-93,0)
A22: Zero Coupon Bond Face Value | B22: 100 | E22: =IF(D23<=jmin,-1/3-a^2*D23^2*deltat^2-2*a*D23*deltat,IF(D23<jmax,1/6+(1/2)*(a^2*D23^2*deltat^2-a*D23*deltat),0)) -> 0.1666666667 | K22: =IF(K$1>derivativematurity,0,IF(K$1=derivativematurity,K25,MAX((M12*$E21+M17*$E22+M22*$E23+M27*$E24+M32*$E25)*EXP(-K24*deltat),IF(AmerEur="American",K25,-1E+307)))) -> 0.04425950126 | M22: =IF(M$1>derivativematurity,0,IF(M$1=derivativematurity,M25,MAX((O12*$E21+O17*$E22+O22*$E23+O27*$E24+O32*$E25)*EXP(-M24*deltat),IF(AmerEur="American",M25,-1E+307)))) -> 0
A23: Derivative Description: | D23: =D28+1 -> 2 | E23: =IF(D23<=jmin,7/6+(1/2)*(a^2*D23^2*deltat^2+3*a*D23*deltat),IF(D23<jmax,2/3-a^2*D23^2*deltat^2,7/6+(1/2)*(a^2*D23^2*deltat^2-3*a*D23*deltat))) -> 0.6666666667 | K23: =$E31*EXP(-I34*deltat)*I33+$E27*EXP(-I29*deltat)*I28+$E23*EXP(-I24*deltat)*I23+$E19*EXP(-I19*deltat)*I18+$E15*EXP(-I14*deltat)*I13 -> 0.02470154599 | M23: =$E31*EXP(-K34*$B$4)*K33+$E27*EXP(-K29*$B$4)*K28+$E23*EXP(-K24*$B$4)*K23+$E19*EXP(-K19*$B$4)*K18+$E15*EXP(-K14*$B$4)*K13 -> 0.04481722277
B24: Call on Zero Coupon Bond | E24: =IF(D23<=jmin,0,IF(D23<jmax,1/6+(1/2)*(a^2*D23^2*deltat^2+a*D23*deltat),-1/3-a^2*D23^2*deltat^2+2*a*D23*deltat)) -> 0.1666666667 | J24: =BondFaceValue*(EXP(-BondMaturity*OFFSET(K$2,0,2*(BondMaturity-K$1)/deltat))/K$3)*EXP(-(sigma^2)*IF(a=0,BondMaturity-K$1,(1-EXP(-a*(BondMaturity-K$1)))/a)^2*IF(a=0,K$1/2,(1-EXP(-2*a*K$1))/(4*a))-IF(a=0,BondMaturity-K$1,(1-EXP(-a*(BondMaturity-K$1)))/a)*((K24*deltat+LN(M$3/K$3))/(IF(a=0,deltat,(1-EXP(-a*deltat))/a))-sigma^2*IF(a=0,K$1*deltat/2,(1-EXP(-2*a*K$1))*((1-EXP(-a*deltat))/a)/(4*a)))) -> 89.1507868 | K24: =$D23*deltaR+K$7 -> 0.1148410162 | L24: =BondFaceValue*(EXP(-BondMaturity*OFFSET(M$2,0,2*(BondMaturity-M$1)/deltat))/M$3)*EXP(-(sigma^2)*IF(a=0,BondMaturity-M$1,(1-EXP(-a*(BondMaturity-M$1)))/a)^2*IF(a=0,M$1/2,(1-EXP(-2*a*M$1))/(4*a))-IF(a=0,BondMaturity-M$1,(1-EXP(-a*(BondMaturity-M$1)))/a)*((M24*deltat+LN(O$3/M$3))/(IF(a=0,deltat,(1-EXP(-a*deltat))/a))-sigma^2*IF(a=0,M$1*deltat/2,(1-EXP(-2*a*M$1))*((1-EXP(-a*deltat))/a)/(4*a)))) -> 100 | M24: =$D23*deltaR+M$7 -> 0.09509101387
B25: Bond Matures in 3 Years | E25: =IF(D23<jmax,0,1/6+(1/2)*(a^2*D23^2*deltat^2-a*D23*deltat)) -> 0 | K25: =payoff -> 0.04425950126 | M25: =payoff -> 7
B26: Option Expires in 2 Years | E26: =IF(D28<=jmin,1/6+(1/2)*(a^2*D28^2*deltat^2+a*D28*deltat),0) -> 0 | I26: =SUBSTITUTE(SUBSTITUTE(formula,"periodrate",ADDRESS(ROW()+3,COLUMN())),"bondprice",ADDRESS(ROW()+3,COLUMN()-1)) -> MAX($H$29-93,0) | K26: =SUBSTITUTE(SUBSTITUTE(formula,"periodrate",ADDRESS(ROW()+3,COLUMN())),"bondprice",ADDRESS(ROW()+3,COLUMN()-1)) -> MAX($J$29-93,0) | M26: =SUBSTITUTE(SUBSTITUTE(formula,"periodrate",ADDRESS(ROW()+3,COLUMN())),"bondprice",ADDRESS(ROW()+3,COLUMN()-1)) -> MAX($L$29-93,0)
B27: Bond Face Value 100 | E27: =IF(D28<=jmin,-1/3-a^2*D28^2*deltat^2-2*a*D28*deltat,IF(D28<jmax,1/6+(1/2)*(a^2*D28^2*deltat^2-a*D28*deltat),0)) -> 0.1666666667 | I27: =IF(I$1>derivativematurity,0,IF(I$1=derivativematurity,I30,MAX((K17*$E26+K22*$E27+K27*$E28+K32*$E29+K37*$E30)*EXP(-I29*deltat),IF(AmerEur="American",I30,-1E+307)))) -> 1.104340303 | K27: =IF(K$1>derivativematurity,0,IF(K$1=derivativematurity,K30,MAX((M17*$E26+M22*$E27+M27*$E28+M32*$E29+M37*$E30)*EXP(-K29*deltat),IF(AmerEur="American",K30,-1E+307)))) -> 1.190821193 | M27: =IF(M$1>derivativematurity,0,IF(M$1=derivativematurity,M30,MAX((O17*$E26+O22*$E27+O27*$E28+O32*$E29+O37*$E30)*EXP(-M29*deltat),IF(AmerEur="American",M30,-1E+307)))) -> 0
B28: Option Strike Price 93 | D28: =D33+1 -> 1 | E28: =IF(D28<=jmin,7/6+(1/2)*(a^2*D28^2*deltat^2+3*a*D28*deltat),IF(D28<jmax,2/3-a^2*D28^2*deltat^2,7/6+(1/2)*(a^2*D28^2*deltat^2-3*a*D28*deltat))) -> 0.6666666667 | I28: =$E36*EXP(-G39*deltat)*G38+$E32*EXP(-G34*deltat)*G33+$E28*EXP(-G29*deltat)*G28+$E24*EXP(-G24*deltat)*G23+$E20*EXP(-G19*deltat)*G18 -> 0.1601315732 | K28: =$E36*EXP(-I39*deltat)*I38+$E32*EXP(-I34*deltat)*I33+$E28*EXP(-I29*deltat)*I28+$E24*EXP(-I24*deltat)*I23+$E20*EXP(-I19*deltat)*I18 -> 0.1993386481 | M28: =$E36*EXP(-K39*deltat)*K38+$E32*EXP(-K34*deltat)*K33+$E28*EXP(-K29*deltat)*K28+$E24*EXP(-K24*deltat)*K23+$E20*EXP(-K19*deltat)*K18 -> 0.1938044461
E29: =IF(D28<=jmin,0,IF(D28<jmax,1/6+(1/2)*(a^2*D28^2*deltat^2+a*D28*deltat),-1/3-a^2*D28^2*deltat^2+2*a*D28*deltat)) -> 0.1666666667 | H29: =BondFaceValue*(EXP(-BondMaturity*OFFSET(I$2,0,2*(BondMaturity-I$1)/deltat))/I$3)*EXP(-(sigma^2)*IF(a=0,BondMaturity-I$1,(1-EXP(-a*(BondMaturity-I$1)))/a)^2*IF(a=0,I$1/2,(1-EXP(-2*a*I$1))/(4*a))-IF(a=0,BondMaturity-I$1,(1-EXP(-a*(BondMaturity-I$1)))/a)*((I29*deltat+LN(K$3/I$3))/(IF(a=0,deltat,(1-EXP(-a*deltat))/a))-sigma^2*IF(a=0,I$1*deltat/2,(1-EXP(-2*a*I$1))*((1-EXP(-a*deltat))/a)/(4*a)))) -> 83.95904915 | I29: =$D28*deltaR+I$7 -> 0.07737050808 | J29: =BondFaceValue*(EXP(-BondMaturity*OFFSET(K$2,0,2*(BondMaturity-K$1)/deltat))/K$3)*EXP(-(sigma^2)*IF(a=0,BondMaturity-K$1,(1-EXP(-a*(BondMaturity-K$1)))/a)^2*IF(a=0,K$1/2,(1-EXP(-2*a*K$1))/(4*a))-IF(a=0,BondMaturity-K$1,(1-EXP(-a*(BondMaturity-K$1)))/a)*((K29*deltat+LN(M$3/K$3))/(IF(a=0,deltat,(1-EXP(-a*deltat))/a))-sigma^2*IF(a=0,K$1*deltat/2,(1-EXP(-2*a*K$1))*((1-EXP(-a*deltat))/a)/(4*a)))) -> 90.70837388 | K29: =$D28*deltaR+K$7 -> 0.09752050808 | L29: =BondFaceValue*(EXP(-BondMaturity*OFFSET(M$2,0,2*(BondMaturity-M$1)/deltat))/M$3)*EXP(-(sigma^2)*IF(a=0,BondMaturity-M$1,(1-EXP(-a*(BondMaturity-M$1)))/a)^2*IF(a=0,M$1/2,(1-EXP(-2*a*M$1))/(4*a))-IF(a=0,BondMaturity-M$1,(1-EXP(-a*(BondMaturity-M$1)))/a)*((M29*deltat+LN(O$3/M$3))/(IF(a=0,deltat,(1-EXP(-a*deltat))/a))-sigma^2*IF(a=0,M$1*deltat/2,(1-EXP(-2*a*M$1))*((1-EXP(-a*deltat))/a)/(4*a)))) -> 100 | M29: =$D28*deltaR+M$7 -> 0.07777050579
E30: =IF(D28<jmax,0,1/6+(1/2)*(a^2*D28^2*deltat^2-a*D28*deltat)) -> 0 | I30: =payoff -> 0 | K30: =payoff -> 1.190821193 | M30: =payoff -> 7
E31: =IF(D33<=jmin,1/6+(1/2)*(a^2*D33^2*deltat^2+a*D33*deltat),0) -> 0 | G31: =SUBSTITUTE(SUBSTITUTE(formula,"periodrate",ADDRESS(ROW()+3,COLUMN())),"bondprice",ADDRESS(ROW()+3,COLUMN()-1)) -> MAX($F$34-93,0) | I31: =SUBSTITUTE(SUBSTITUTE(formula,"periodrate",ADDRESS(ROW()+3,COLUMN())),"bondprice",ADDRESS(ROW()+3,COLUMN()-1)) -> MAX($H$34-93,0) | K31: =SUBSTITUTE(SUBSTITUTE(formula,"periodrate",ADDRESS(ROW()+3,COLUMN())),"bondprice",ADDRESS(ROW()+3,COLUMN()-1)) -> MAX($J$34-93,0) | M31: =SUBSTITUTE(SUBSTITUTE(formula,"periodrate",ADDRESS(ROW()+3,COLUMN())),"bondprice",ADDRESS(ROW()+3,COLUMN()-1)) -> MAX($L$34-93,0)
E32: =IF(D33<=jmin,-1/3-a^2*D33^2*deltat^2-2*a*D33*deltat,IF(D33<jmax,1/6+(1/2)*(a^2*D33^2*deltat^2-a*D33*deltat),0)) -> 0.1666666667 | G32: =IF(G$1>derivativematurity,0,IF(G$1=derivativematurity,G35,MAX((I22*$E31+I27*$E32+I32*$E33+I37*$E34+I42*$E35)*EXP(-G34*deltat),IF(AmerEur="American",G35,-1E+307)))) -> 2.13815102 | I32: =IF(I$1>derivativematurity,0,IF(I$1=derivativematurity,I35,MAX((K22*$E31+K27*$E32+K32*$E33+K37*$E34+K42*$E35)*EXP(-I34*deltat),IF(AmerEur="American",I35,-1E+307)))) -> 2.216704462 | K32: =IF(K$1>derivativematurity,0,IF(K$1=derivativematurity,K35,MAX((M22*$E31+M27*$E32+M32*$E33+M37*$E34+M42*$E35)*EXP(-K34*deltat),IF(AmerEur="American",K35,-1E+307)))) -> 2.351511685 | M32: =IF(M$1>derivativematurity,0,IF(M$1=derivativematurity,M35,MAX((O22*$E31+O27*$E32+O32*$E33+O37*$E34+O42*$E35)*EXP(-M34*deltat),IF(AmerEur="American",M35,-1E+307)))) -> 0
D33: 0 | E33: =IF(D33<=jmin,7/6+(1/2)*(a^2*D33^2*deltat^2+3*a*D33*deltat),IF(D33<jmax,2/3-a^2*D33^2*deltat^2,7/6+(1/2)*(a^2*D33^2*deltat^2-3*a*D33*deltat))) -> 0.6666666667 | G33: 1 | I33: =$E41*EXP(-G44*deltat)*G43+$E37*EXP(-G39*deltat)*G38+$E33*EXP(-G34*deltat)*G33+$E29*EXP(-G29*deltat)*G28+$E25*EXP(-G24*deltat)*G23 -> 0.6405262928 | K33: =$E41*EXP(-I44*deltat)*I43+$E37*EXP(-I39*deltat)*I38+$E33*EXP(-I34*deltat)*I33+$E29*EXP(-I29*deltat)*I28+$E25*EXP(-I24*deltat)*I23 -> 0.4524036288 | M33: =$E41*EXP(-K44*deltat)*K43+$E37*EXP(-K39*deltat)*K38+$E33*EXP(-K34*deltat)*K33+$E29*EXP(-K29*deltat)*K28+$E25*EXP(-K24*deltat)*K23 -> 0.3402380456
E34: =IF(D33<=jmin,0,IF(D33<jmax,1/6+(1/2)*(a^2*D33^2*deltat^2+a*D33*deltat),-1/3-a^2*D33^2*deltat^2+2*a*D33*deltat)) -> 0.1666666667 | F34: =BondFaceValue*(EXP(-BondMaturity*OFFSET(G$2,0,2*(BondMaturity-G$1)/deltat))/G$3)*EXP(-(sigma^2)*IF(a=0,BondMaturity-G$1,(1-EXP(-a*(BondMaturity-G$1)))/a)^2*IF(a=0,G$1/2,(1-EXP(-2*a*G$1))/(4*a))-IF(a=0,BondMaturity-G$1,(1-EXP(-a*(BondMaturity-G$1)))/a)*((G34*deltat+LN(I$3/G$3))/(IF(a=0,deltat,(1-EXP(-a*deltat))/a))-sigma^2*IF(a=0,G$1*deltat/2,(1-EXP(-2*a*G$1))*((1-EXP(-a*deltat))/a)/(4*a)))) -> 83.52702114 | G34: =$D33*deltaR+G$7 -> 0.04 | H34: =BondFaceValue*(EXP(-BondMaturity*OFFSET(I$2,0,2*(BondMaturity-I$1)/deltat))/I$3)*EXP(-(sigma^2)*IF(a=0,BondMaturity-I$1,(1-EXP(-a*(BondMaturity-I$1)))/a)^2*IF(a=0,I$1/2,(1-EXP(-2*a*I$1))/(4*a))-IF(a=0,BondMaturity-I$1,(1-EXP(-a*(BondMaturity-I$1)))/a)*((I34*deltat+LN(K$3/I$3))/(IF(a=0,deltat,(1-EXP(-a*deltat))/a))-sigma^2*IF(a=0,I$1*deltat/2,(1-EXP(-2*a*I$1))*((1-EXP(-a*deltat))/a)/(4*a)))) -> 86.91843811 | I34: =$D33*deltaR+I$7 -> 0.06005 | J34: =BondFaceValue*(EXP(-BondMaturity*OFFSET(K$2,0,2*(BondMaturity-K$1)/deltat))/K$3)*EXP(-(sigma^2)*IF(a=0,BondMaturity-K$1,(1-EXP(-a*(BondMaturity-K$1)))/a)^2*IF(a=0,K$1/2,(1-EXP(-2*a*K$1))/(4*a))-IF(a=0,BondMaturity-K$1,(1-EXP(-a*(BondMaturity-K$1)))/a)*((K34*deltat+LN(M$3/K$3))/(IF(a=0,deltat,(1-EXP(-a*deltat))/a))-sigma^2*IF(a=0,K$1*deltat/2,(1-EXP(-2*a*K$1))*((1-EXP(-a*deltat))/a)/(4*a)))) -> 92.29317416 | K34: =$D33*deltaR+K$7 -> 0.0802 | L34: =BondFaceValue*(EXP(-BondMaturity*OFFSET(M$2,0,2*(BondMaturity-M$1)/deltat))/M$3)*EXP(-(sigma^2)*IF(a=0,BondMaturity-M$1,(1-EXP(-a*(BondMaturity-M$1)))/a)^2*IF(a=0,M$1/2,(1-EXP(-2*a*M$1))/(4*a))-IF(a=0,BondMaturity-M$1,(1-EXP(-a*(BondMaturity-M$1)))/a)*((M34*deltat+LN(O$3/M$3))/(IF(a=0,deltat,(1-EXP(-a*deltat))/a))-sigma^2*IF(a=0,M$1*deltat/2,(1-EXP(-2*a*M$1))*((1-EXP(-a*deltat))/a)/(4*a)))) -> 100 | M34: =$D33*deltaR+M$7 -> 0.06044999772
E35: =IF(D33<jmax,0,1/6+(1/2)*(a^2*D33^2*deltat^2-a*D33*deltat)) -> 0 | G35: =payoff -> 0 | I35: =payoff -> 0 | K35: =payoff -> 2.351511685 | M35: =payoff -> 7
E36: =IF(D38<=jmin,1/6+(1/2)*(a^2*D38^2*deltat^2+a*D38*deltat),0) -> 0 | I36: =SUBSTITUTE(SUBSTITUTE(formula,"periodrate",ADDRESS(ROW()+3,COLUMN())),"bondprice",ADDRESS(ROW()+3,COLUMN()-1)) -> MAX($H$39-93,0) | K36: =SUBSTITUTE(SUBSTITUTE(formula,"periodrate",ADDRESS(ROW()+3,COLUMN())),"bondprice",ADDRESS(ROW()+3,COLUMN()-1)) -> MAX($J$39-93,0) | M36: =SUBSTITUTE(SUBSTITUTE(formula,"periodrate",ADDRESS(ROW()+3,COLUMN())),"bondprice",ADDRESS(ROW()+3,COLUMN()-1)) -> MAX($L$39-93,0)
E37: =IF(D38<=jmin,-1/3-a^2*D38^2*deltat^2-2*a*D38*deltat,IF(D38<jmax,1/6+(1/2)*(a^2*D38^2*deltat^2-a*D38*deltat),0)) -> 0.1666666667 | I37: =IF(I$1>derivativematurity,0,IF(I$1=derivativematurity,I40,MAX((K27*$E36+K32*$E37+K37*$E38+K42*$E39+K47*$E40)*EXP(-I39*deltat),IF(AmerEur="American",I40,-1E+307)))) -> 3.381305558 | K37: =IF(K$1>derivativematurity,0,IF(K$1=derivativematurity,K40,MAX((M27*$E36+M32*$E37+M37*$E38+M42*$E39+M47*$E40)*EXP(-K39*deltat),IF(AmerEur="American",K40,-1E+307)))) -> 3.526505083 | M37: =IF(M$1>derivativematurity,0,IF(M$1=derivativematurity,M40,MAX((O27*$E36+O32*$E37+O37*$E38+O42*$E39+O47*$E40)*EXP(-M39*deltat),IF(AmerEur="American",M40,-1E+307)))) -> 0
D38: =D33-1 -> -1 | E38: =IF(D38<=jmin,7/6+(1/2)*(a^2*D38^2*deltat^2+3*a*D38*deltat),IF(D38<jmax,2/3-a^2*D38^2*deltat^2,7/6+(1/2)*(a^2*D38^2*deltat^2-3*a*D38*deltat))) -> 0.6666666667 | I38: =$E46*EXP(-G49*deltat)*G48+$E42*EXP(-G44*deltat)*G43+$E38*EXP(-G39*deltat)*G38+$E34*EXP(-G34*deltat)*G33+$E30*EXP(-G29*deltat)*G28 -> 0.1601315732 | K38: =$E46*EXP(-I49*deltat)*I48+$E42*EXP(-I44*deltat)*I43+$E38*EXP(-I39*deltat)*I38+$E34*EXP(-I34*deltat)*I33+$E30*EXP(-I29*deltat)*I28 -> 0.202821369 | M38: =$E46*EXP(-K49*deltat)*K48+$E42*EXP(-K44*deltat)*K43+$E38*EXP(-K39*deltat)*K38+$E34*EXP(-K34*deltat)*K33+$E30*EXP(-K29*deltat)*K28 -> 0.2006356661
E39: =IF(D38<=jmin,0,IF(D38<jmax,1/6+(1/2)*(a^2*D38^2*deltat^2+a*D38*deltat),-1/3-a^2*D38^2*deltat^2+2*a*D38*deltat)) -> 0.1666666667 | H39: =BondFaceValue*(EXP(-BondMaturity*OFFSET(I$2,0,2*(BondMaturity-I$1)/deltat))/I$3)*EXP(-(sigma^2)*IF(a=0,BondMaturity-I$1,(1-EXP(-a*(BondMaturity-I$1)))/a)^2*IF(a=0,I$1/2,(1-EXP(-2*a*I$1))/(4*a))-IF(a=0,BondMaturity-I$1,(1-EXP(-a*(BondMaturity-I$1)))/a)*((I39*deltat+LN(K$3/I$3))/(IF(a=0,deltat,(1-EXP(-a*deltat))/a))-sigma^2*IF(a=0,I$1*deltat/2,(1-EXP(-2*a*I$1))*((1-EXP(-a*deltat))/a)/(4*a)))) -> 89.98213964 | I39: =$D38*deltaR+I$7 -> 0.04272949192 | J39: =BondFaceValue*(EXP(-BondMaturity*OFFSET(K$2,0,2*(BondMaturity-K$1)/deltat))/K$3)*EXP(-(sigma^2)*IF(a=0,BondMaturity-K$1,(1-EXP(-a*(BondMaturity-K$1)))/a)^2*IF(a=0,K$1/2,(1-EXP(-2*a*K$1))/(4*a))-IF(a=0,BondMaturity-K$1,(1-EXP(-a*(BondMaturity-K$1)))/a)*((K39*deltat+LN(M$3/K$3))/(IF(a=0,deltat,(1-EXP(-a*deltat))/a))-sigma^2*IF(a=0,K$1*deltat/2,(1-EXP(-2*a*K$1))*((1-EXP(-a*deltat))/a)/(4*a)))) -> 93.90566308 | K39: =$D38*deltaR+K$7 -> 0.06287949192 | L39: =BondFaceValue*(EXP(-BondMaturity*OFFSET(M$2,0,2*(BondMaturity-M$1)/deltat))/M$3)*EXP(-(sigma^2)*IF(a=0,BondMaturity-M$1,(1-EXP(-a*(BondMaturity-M$1)))/a)^2*IF(a=0,M$1/2,(1-EXP(-2*a*M$1))/(4*a))-IF(a=0,BondMaturity-M$1,(1-EXP(-a*(BondMaturity-M$1)))/a)*((M39*deltat+LN(O$3/M$3))/(IF(a=0,deltat,(1-EXP(-a*deltat))/a))-sigma^2*IF(a=0,M$1*deltat/2,(1-EXP(-2*a*M$1))*((1-EXP(-a*deltat))/a)/(4*a)))) -> 100 | M39: =$D38*deltaR+M$7 -> 0.04312948964
E40: =IF(D38<jmax,0,1/6+(1/2)*(a^2*D38^2*deltat^2-a*D38*deltat)) -> 0 | I40: =payoff -> 0.6500612964 | K40: =payoff -> 3.526505083 | M40: =payoff -> 7
E41: =IF(D43<=jmin,1/6+(1/2)*(a^2*D43^2*deltat^2+a*D43*deltat),0) -> 0 | K41: =SUBSTITUTE(SUBSTITUTE(formula,"periodrate",ADDRESS(ROW()+3,COLUMN())),"bondprice",ADDRESS(ROW()+3,COLUMN()-1)) -> MAX($J$44-93,0) | M41: =SUBSTITUTE(SUBSTITUTE(formula,"periodrate",ADDRESS(ROW()+3,COLUMN())),"bondprice",ADDRESS(ROW()+3,COLUMN()-1)) -> MAX($L$44-93,0)
E42: =IF(D43<=jmin,-1/3-a^2*D43^2*deltat^2-2*a*D43*deltat,IF(D43<jmax,1/6+(1/2)*(a^2*D43^2*deltat^2-a*D43*deltat),0)) -> 0.1666666667 | K42: =IF(K$1>derivativematurity,0,IF(K$1=derivativematurity,K45,MAX((M32*$E41+M37*$E42+M42*$E43+M47*$E44+M52*$E45)*EXP(-K44*deltat),IF(AmerEur="American",K45,-1E+307)))) -> 4.715977637 | M42: =IF(M$1>derivativematurity,0,IF(M$1=derivativematurity,M45,MAX((O32*$E41+O37*$E42+O42*$E43+O47*$E44+O52*$E45)*EXP(-M44*deltat),IF(AmerEur="American",M45,-1E+307)))) -> 0
D43: =D38-1 -> -2 | E43: =IF(D43<=jmin,7/6+(1/2)*(a^2*D43^2*deltat^2+3*a*D43*deltat),IF(D43<jmax,2/3-a^2*D43^2*deltat^2,7/6+(1/2)*(a^2*D43^2*deltat^2-3*a*D43*deltat))) -> 0.6666666667 | K43: =$E51*EXP(-I54*deltat)*I53+$E47*EXP(-I49*deltat)*I48+$E43*EXP(-I44*deltat)*I43+$E39*EXP(-I39*deltat)*I38+$E35*EXP(-I34*deltat)*I33 -> 0.0255722262 | M43: =$E51*EXP(-K54*deltat)*K53+$E47*EXP(-K49*deltat)*K48+$E43*EXP(-K44*deltat)*K43+$E39*EXP(-K39*deltat)*K38+$E35*EXP(-K34*deltat)*K33 -> 0.04803234003
E44: =IF(D43<=jmin,0,IF(D43<jmax,1/6+(1/2)*(a^2*D43^2*deltat^2+a*D43*deltat),-1/3-a^2*D43^2*deltat^2+2*a*D43*deltat)) -> 0.1666666667 | J44: =BondFaceValue*(EXP(-BondMaturity*OFFSET(K$2,0,2*(BondMaturity-K$1)/deltat))/K$3)*EXP(-(sigma^2)*IF(a=0,BondMaturity-K$1,(1-EXP(-a*(BondMaturity-K$1)))/a)^2*IF(a=0,K$1/2,(1-EXP(-2*a*K$1))/(4*a))-IF(a=0,BondMaturity-K$1,(1-EXP(-a*(BondMaturity-K$1)))/a)*((K44*deltat+LN(M$3/K$3))/(IF(a=0,deltat,(1-EXP(-a*deltat))/a))-sigma^2*IF(a=0,K$1*deltat/2,(1-EXP(-2*a*K$1))*((1-EXP(-a*deltat))/a)/(4*a)))) -> 95.5463244 | K44: =$D43*deltaR+K$7 -> 0.04555898385 | L44: =BondFaceValue*(EXP(-BondMaturity*OFFSET(M$2,0,2*(BondMaturity-M$1)/deltat))/M$3)*EXP(-(sigma^2)*IF(a=0,BondMaturity-M$1,(1-EXP(-a*(BondMaturity-M$1)))/a)^2*IF(a=0,M$1/2,(1-EXP(-2*a*M$1))/(4*a))-IF(a=0,BondMaturity-M$1,(1-EXP(-a*(BondMaturity-M$1)))/a)*((M44*deltat+LN(O$3/M$3))/(IF(a=0,deltat,(1-EXP(-a*deltat))/a))-sigma^2*IF(a=0,M$1*deltat/2,(1-EXP(-2*a*M$1))*((1-EXP(-a*deltat))/a)/(4*a)))) -> 100 | M44: =$D43*deltaR+M$7 -> 0.02580898156
E45: =IF(D43<jmax,0,1/6+(1/2)*(a^2*D43^2*deltat^2-a*D43*deltat)) -> 0 | K45: =payoff -> 4.715977637 | M45: =payoff -> 7
E46: =IF(D48<=jmin,1/6+(1/2)*(a^2*D48^2*deltat^2+a*D48*deltat),0) -> 0 | M46: =SUBSTITUTE(SUBSTITUTE(formula,"periodrate",ADDRESS(ROW()+3,COLUMN())),"bondprice",ADDRESS(ROW()+3,COLUMN()-1)) -> MAX($L$49-93,0)
E47: =IF(D48<=jmin,-1/3-a^2*D48^2*deltat^2-2*a*D48*deltat,IF(D48<jmax,1/6+(1/2)*(a^2*D48^2*deltat^2-a*D48*deltat),0)) -> 0.1666666667 | M47: =IF(M$1>derivativematurity,0,IF(M$1=derivativematurity,M50,MAX((O37*$E46+O42*$E47+O47*$E48+O52*$E49+O57*$E50)*EXP(-M49*deltat),IF(AmerEur="American",M50,-1E+307)))) -> 0
D48: =D43-1 -> -3 | E48: =IF(D48<=jmin,7/6+(1/2)*(a^2*D48^2*deltat^2+3*a*D48*deltat),IF(D48<jmax,2/3-a^2*D48^2*deltat^2,7/6+(1/2)*(a^2*D48^2*deltat^2-3*a*D48*deltat))) -> 0.6666666667 | M48: =$E56*EXP(-K59*deltat)*K58+$E52*EXP(-K54*deltat)*K53+$E48*EXP(-K49*deltat)*K48+$E44*EXP(-K44*deltat)*K43+$E40*EXP(-K39*deltat)*K38 -> 0.004072220367
E49: =IF(D48<=jmin,0,IF(D48<jmax,1/6+(1/2)*(a^2*D48^2*deltat^2+a*D48*deltat),-1/3-a^2*D48^2*deltat^2+2*a*D48*deltat)) -> 0.1666666667 | L49: =BondFaceValue*(EXP(-BondMaturity*OFFSET(M$2,0,2*(BondMaturity-M$1)/deltat))/M$3)*EXP(-(sigma^2)*IF(a=0,BondMaturity-M$1,(1-EXP(-a*(BondMaturity-M$1)))/a)^2*IF(a=0,M$1/2,(1-EXP(-2*a*M$1))/(4*a))-IF(a=0,BondMaturity-M$1,(1-EXP(-a*(BondMaturity-M$1)))/a)*((M49*deltat+LN(O$3/M$3))/(IF(a=0,deltat,(1-EXP(-a*deltat))/a))-sigma^2*IF(a=0,M$1*deltat/2,(1-EXP(-2*a*M$1))*((1-EXP(-a*deltat))/a)/(4*a)))) -> 100 | M49: =$D48*deltaR+M$7 -> 0.008488473489
E50: =IF(D48<jmax,0,1/6+(1/2)*(a^2*D48^2*deltat^2-a*D48*deltat)) -> 0 | M50: =payoff -> 7

Sheet README
B1: Notes (Important. Please Read)
A2: 1 | B2: This is a macro-enabled Excel file. To use its functionality, you must accept the security warning displayed and enable macros.
A3: 2 | B3: The spreadsheet creates interest-rate tree to fit prices of zero coupon bonds. This requires trial and error. This is achieved
B4: using circular references. If your spreadsheet displays warning of circular references (arrow signs connecting cells), then
B5: please allow iterative calcualtions. Go to File menu, choose options, then formulas and make sure that the box near "Enable
B6: Iterative Calculations" is checked. The value for number of iterations below that should be at least 50 and the maximum
B7: error value should be low (I used 0.0001).
A8: 3 | B8: The inputs, the tree, and the output, all are in the "Hull-White" worksheet. The cells with blue text are input cells.
A9: 4 | B9: Do not edit other cells. There are some cells with hidden formulas which are necessary for calculations.
A10: 5 | B10: Enter values for sigma, a, and deltat (time step for each level of tree).
A11: 6 | B11: A tree with four levels and three time steps is created. You cannot use this spreadsheet for a tree with 5 levels and 4 time steps.
B12: If you need a tree with three levels and two time steps, just ignore the last level of the tree.
A13: 7 | B13: Input the zero rates (rates on zero coupon bonds), one for each level needed, in blue text cells at the top of the tree. Note that
B14: cells are already percent formatted so to enter 5.386%, just type 5.386 and enter.
A15: 8 | B15: This is all you need to do to create a tree.
A16: 9 | B16: Each node has three numbers. Ignore the top number for now. The bottom number is the per period interest rate at that node.
B17: This is similar to short rate except that short rate is an instantaneous rate whereas this rate is a one period deposit from that
B18: node to the nodes in the next next level. The middle number is the state price of getting a dollar in that node. This means that
B19: adding all the middle numbers in a level gives the price of a zero coupon bond paying one dollar at that time.
A20: 10 | B20: The spreadsheet can price simple interest rate derivatives. A derivative can be priced if its payoff depends on the price of a
B21: zero coupon bond or on the current per period rate. Enter the formula for payoff to the right of "Derivative Payoff Formula".
A22: 11 | B22: Input payoff formula as text of an Excel formula but do not put an equal sign in front. The formula may depend on the per period
B23: interest rate and/or bond price. Use the word periodrate for the per period rate. Use the word bondprice for the bond price. You
B24: may also use the word deltat for the time interval.
A25: 12 | B25: Input the maturity of the derivative and specify whether it is European or American style.
A26: 13 | B26: If the derivative payoff depends on the price of a bond, input the bond face value and bond maturity.
A27: 14 | B27: Examples of derivative payoff functions:
B28: Bond: bondprice
B29: Call option on bond with strike price 90: MAX(bondprice-90,0)
B30: Put option on bond with strike price 95: MAX(95-bondprice,0)
B31: Caplet with cap rate of 5% on notional amount of $10,000 for a period: 10000*deltat*MAX(periodrate-.05,0)
B32: Floorlet with floor rate of 4% on notional amount of $10,000 for a period: 10000*deltat*MAX(0.04-periodrate,0)
A33: 15 | B33: The derivative description mentioned at the bottom of column A is for your own convenience but is ignored in calculations.
A34: 16 | B34: The Tree is created using the formula in the Hull derivatives textbook 8th edition.
